[Event "Balkan Youth Online-ch 2020"]
[Site "Online"]
[Date "2020.10.31"]
[Round "2.22"]
[White "Nikolovski, Kiril"]
[Black "Milovic, Ilija"]
[Result "1-0"]
[ECO "B01"]
[WhiteElo "1282"]
[BlackElo "1044"]
[Annotator "NA RC"]
[PlyCount "127"]
[EventDate "2020.10.31"]
[EventType "swiss"]
[SourceTitle "playchess.com"]
[Source "ChessBase"]
[SourceQuality "1"]
[TimeControl "5400+30"]

1. e4 {[%emt 1:05:20]} d5 {[%emt 1:05:26]} 2. exd5 {[%emt 0:00:22]} Nf6 {[%emt 0:00:24]} 3. d4 {[%emt 0:00:25]} Nxd5 {[%emt 0:00:25]} 4. c4 {[%emt 0:00:38]} Nf6 {[%emt 0:00:24]} 5. Nc3 {[%emt 0:00:29]} Bg4 {[%emt 0:00:31]} 6. Be2 {[%emt 0:00:28]} Bxe2 {[%emt 0:00:25]} 7. Ngxe2 {[%emt 0:00:22]} e6 {[%emt 0:00:24]} 8. O-O {[%emt 0:00:23]} Bb4 {[%emt 0:00:24]} 9. Bg5 {[%emt 0:00:49]} h6 {[%emt 0:00:34]} 10. Bxf6 {[%emt 0:00:45]} Qxf6 {[%emt 0:00:29]} 11. Qa4+ {[%emt 0:00:27]} Nc6 {[%emt 0:00:39]} 12. d5 {[%emt 0:00:26]} exd5 {[%emt 0:00:23]} 13. cxd5 {[%emt 0:00:55]} Bxc3 {[%emt 0:00:26]} 14. Nxc3 {[%emt 0:00:23]} O-O {[%emt 0:00:36]} 15. dxc6 {[%emt 0:00:27]} Qxc6 {[%emt 0:00:26]} 16. Qxc6 {[%emt 0:00:25]} bxc6 {[%emt 0:00:22]} 17. Rac1 {[%emt 0:00:24]} Rfe8 {[%emt 0:00:34]} 18. Rfe1 {[%emt 0:00:30]} Rxe1+ {[%emt 0:00:29]} 19. Rxe1 {[%emt 0:00:23]} Rb8 {[%emt 0:00:29]} 20. Re2 {[%emt 0:00:35]} Kf8 {[%emt 0:00:55]} 21. f4 {[%emt 0:00:31]} f5 {[%emt 0:00:35]} 22. Kf2 {[%emt 0:00:25]} h5 {[%emt 0:00:31]} 23. a3 {[%emt 0:00:29]} Kf7 {[%emt 0:00:37]} 24. Ke3 {[%emt 0:00:32]} Re8+ {[%emt 0:00:47]} 25. Kd4 {[%emt 0:00:27]} Rd8+ {[%emt 0:00:36]} 26. Kc5 {[%emt 0:00:36]} Rd6 {[%emt 0:00:38]} 27. Re1 {[%emt 0:00:56]} Kf6 {[%emt 0:00:59]} 28. Rd1 {[%emt 0:00:39]} Re6 {[%emt 0:00:44]} 29. Rd7 {[%emt 0:00:37]} g5 {[%emt 0:00:32]} 30. fxg5+ {[%emt 0:00:33]} Kxg5 {[%emt 0:00:44]} 31. Rxc7 {[%emt 0:00:25]} Re1 {[%emt 0:00:41]} 32. Rxa7 {[%emt 0:00:30]} Rc1 {[%emt 0:01:38]} 33. Kc4 {[%emt 0:00:42]} Rc2 {[%emt 0:00:31]} 34. b4 {[%emt 0:00:25]} Kf4 {[%emt 0:00:45]} 35. Rg7 {[%emt 0:00:27]} h4 {[%emt 0:00:26]} 36. a4 {[%emt 0:00:30]} h3 {[%emt 0:00:27]} 37. gxh3 {[%emt 0:00:46]} Rxh2 {[%emt 0:00:23]} 38. a5 {[%emt 0:00:27]} Rxh3 {[%emt 0:00:31]} 39. a6 {[%emt 0:00:23]} Kf3 {[%emt 0:00:30]} 40. a7 {[%emt 0:00:58]} Rh8 {[%emt 0:00:27]} 41. Kc5 {[%emt 0:00:22]} Rc8 {[%emt 0:01:28]} 42. Na4 {[%emt 0:00:25]} Rf8 {[%emt 0:00:49]} 43. Nb6 {[%emt 0:00:26]} f4 {[%emt 0:00:29]} 44. a8=Q {[%emt 0:00:23]} Rxa8 {[%emt 0:00:24]} 45. Nxa8 {[%emt 0:00:22]} Kf2 {[%emt 0:00:22]} 46. Kxc6 {[%emt 0:00:21]} f3 {[%emt 0:00:23]} 47. b5 {[%emt 0:00:21]} Kf1 {[%emt 0:00:22]} 48. b6 {[%emt 0:00:22]} f2 {[%emt 0:00:21]} 49. b7 {[%emt 0:00:21]} Ke1 {[%emt 0:00:23]} 50. Rf7 {[%emt 0:00:22]} f1=Q {[%emt 0:00:23]} 51. Rxf1+ {[%emt 0:00:22]} Kxf1 {[%emt 0:00:22]} 52. b8=Q {[%emt 0:00:22]} Ke2 {[%emt 0:00:23]} 53. Qf4 {[%emt 0:00:23]} Kd3 {[%emt 0:00:23]} 54. Kd5 {[%emt 0:00:22]} Kc3 {[%emt 0:00:55]} 55. Qc4+ {[%emt 0:00:23]} Kb2 {[%emt 0:00:36]} 56. Kd4 {[%emt 0:00:25]} Kb1 {[%emt 0:00:43]} 57. Qd3+ {[%emt 0:00:33]} Kc1 {[%emt 0:00:24]} 58. Ke3 {[%emt 0:00:30]} Kb2 {[%emt 0:00:24]} 59. Nc7 {[%emt 0:00:23]} Ka2 {[%emt 0:00:28]} 60. Qc3 {[%emt 0:00:22]} Kb1 {[%emt 0:00:23]} 61. Qd2 {[%emt 0:00:25]} Ka1 {[%emt 0:00:23]} 62. Kd3 {[%emt 0:00:23]} Kb1 {[%emt 0:00:23]} 63. Kc3 {[%emt 0:00:22]} Ka1 {[%emt 0:00:22]} 64. Qb2# {[%emt 0:00:22]} 1-0

[Event "Balkan Youth Online-ch 2020"]
[Site "Online"]
[Date "2020.10.31"]
[Round "2.31"]
[White "Xhembulla, Aleksander"]
[Black "Guri, Adrian"]
[Result "1/2-1/2"]
[ECO "B22"]
[WhiteElo "1739"]
[BlackElo "1611"]
[Annotator "NA RC"]
[PlyCount "92"]
[EventDate "2020.10.31"]
[EventType "swiss"]
[SourceTitle "playchess.com"]
[Source "ChessBase"]
[SourceQuality "1"]
[TimeControl "5400+30"]

1. e4 {[%emt 1:05:20]} c5 {[%emt 1:05:25]} 2. c3 {[%emt 0:00:23]} Nf6 {[%emt 0:00:28]} 3. e5 {[%emt 0:00:22]} Nd5 {[%emt 0:00:22]} 4. d4 {[%emt 0:00:21]} cxd4 {[%emt 0:00:21]} 5. cxd4 {[%emt 0:00:21]} Nc6 {[%emt 0:00:29]} 6. Nf3 {[%emt 0:00:21]} d6 {[%emt 0:00:42]} 7. Bc4 {[%emt 0:00:23]} Nb6 {[%emt 0:00:35]} 8. Bb5 {[%emt 0:00:24]} dxe5 {[%emt 0:00:44]} 9. Nxe5 {[%emt 0:00:25]} Bd7 {[%emt 0:00:23]} 10. Nc3 {[%emt 0:00:32]} Nxe5 {[%emt 0:00:42]} 11. dxe5 {[%emt 0:00:24]} e6 {[%emt 0:00:57]} 12. Qe2 {[%emt 0:01:27]} Bxb5 {[%emt 0:01:27]} 13. Qxb5+ {[%emt 0:01:23]} Qd7 {[%emt 0:00:29]} 14. O-O {[%emt 0:00:53]} Qxb5 {[%emt 0:03:03]} 15. Nxb5 {[%emt 0:00:23]} Nd5 {[%emt 0:00:24]} 16. Bg5 {[%emt 0:05:08]} a6 {[%emt 0:00:48]} 17. Nc3 {[%emt 0:01:14]} Nxc3 {[%emt 0:01:02]} 18. bxc3 {[%emt 0:00:23]} h6 {[%emt 0:00:54]} 19. Be3 {[%emt 0:00:46]} Rc8 {[%emt 0:00:32]} 20. Rab1 {[%emt 0:01:18]} b5 {[%emt 0:01:34]} 21. a4 {[%emt 0:01:48]} bxa4 {[%emt 0:01:58]} 22. Rb7 {[%emt 0:02:29]} a3 {[%emt 0:01:10]} 23. Ra7 {[%emt 0:03:09]} Be7 {[%emt 0:02:13]} 24. Rd1 {[%emt 0:02:11]} Rd8 {[%emt 0:04:20]} 25. Rxd8+ {[%emt 0:01:33]} Bxd8 {[%emt 0:00:30]} 26. Bc5 {[%emt 0:00:55]} Bc7 {[%emt 0:02:42]} 27. Bxa3 {[%emt 0:03:13]} Kd7 {[%emt 0:00:37]} 28. Bd6 {[%emt 0:01:35]} Rc8 {[%emt 0:00:36]} 29. Rxa6 {[%emt 0:01:32]} Bxd6 {[%emt 0:00:40]} 30. Rxd6+ {[%emt 0:00:25]} Ke7 {[%emt 0:00:39]} 31. Rd3 {[%emt 0:00:29]} Ra8 {[%emt 0:01:02]} 32. g3 {[%emt 0:00:26]} Ra1+ {[%emt 0:00:29]} 33. Kg2 {[%emt 0:00:23]} Rc1 {[%emt 0:00:39]} 34. h4 {[%emt 0:00:32]} h5 {[%emt 0:00:27]} 35. Kf3 {[%emt 0:00:29]} Rc2 {[%emt 0:00:45]} 36. Ke3 {[%emt 0:01:07]} g6 {[%emt 0:00:39]} 37. f4 {[%emt 0:01:11]} Ra2 {[%emt 0:01:32]} 38. c4 {[%emt 0:00:51]} Ra7 {[%emt 0:01:20]} 39. Kd4 {[%emt 0:01:37]} Kd7 {[%emt 0:00:36]} 40. Kc5+ {[%emt 0:00:28]} Kc7 {[%emt 0:00:26]} 41. Rb3 {[%emt 0:00:42]} Ra6 {[%emt 0:00:56]} 42. Kb5 {[%emt 0:00:47]} Rb6+ {[%emt 0:01:06]} 43. Ka4 {[%emt 0:00:22]} Rc6 {[%emt 0:00:26]} 44. Kb5 {[%emt 0:00:24]} Rb6+ {[%emt 0:00:22]} 45. Ka4 {[%emt 0:00:21]} Rc6 {[%emt 0:00:21]} 46. Kb5 {[%emt 0:00:21]} Rb6+ {[%emt 0:00:22]} 1/2-1/2

[Event "Balkan Youth Online-ch 2020"]
[Site "Online"]
[Date "2020.10.31"]
[Round "2.34"]
[White "Shtavica, Alaudin"]
[Black "Xheladini, Valton"]
[Result "0-1"]
[ECO "B13"]
[WhiteElo "1323"]
[BlackElo "1440"]
[Annotator "NA RC"]
[PlyCount "144"]
[EventDate "2020.10.31"]
[EventType "swiss"]
[SourceTitle "playchess.com"]
[Source "ChessBase"]
[SourceQuality "1"]
[TimeControl "5400+30"]

1. e4 {[%emt 1:05:20]} c6 {[%emt 1:05:30]} 2. d4 {[%emt 0:00:53]} d5 {[%emt 0:00:26]} 3. exd5 {[%emt 0:00:49]} cxd5 {[%emt 0:00:22]} 4. Bb5+ {[%emt 0:00:25]} Bd7 {[%emt 0:00:22]} 5. Nc3 {[%emt 0:01:06]} Bxb5 {[%emt 0:01:13]} 6. Nxb5 {[%emt 0:00:27]} Qa5+ {[%emt 0:00:25]} 7. Nc3 {[%emt 0:00:27]} Nc6 {[%emt 0:00:34]} 8. Nf3 {[%emt 0:00:32]} e6 {[%emt 0:00:41]} 9. O-O {[%emt 0:00:40]} Nf6 {[%emt 0:00:46]} 10. Bd2 {[%emt 0:00:31]} Bb4 {[%emt 0:02:08]} 11. a3 {[%emt 0:01:00]} Bxc3 {[%emt 0:00:23]} 12. Bxc3 {[%emt 0:00:33]} Qc7 {[%emt 0:00:30]} 13. h3 {[%emt 0:00:58]} Rc8 {[%emt 0:01:12]} 14. Re1 {[%emt 0:00:50]} Ne4 {[%emt 0:03:01]} 15. Bd2 {[%emt 0:01:11]} O-O {[%emt 0:01:06]} 16. Qc1 {[%emt 0:00:39]} Na5 {[%emt 0:06:45]} 17. b3 {[%emt 0:02:04]} Nxd2 {[%emt 0:01:17]} 18. Qxd2 {[%emt 0:00:28]} Qc3 {[%emt 0:01:24]} 19. Qxc3 {[%emt 0:00:48]} Rxc3 {[%emt 0:00:24]} 20. Re2 {[%emt 0:00:50]} Rfc8 {[%emt 0:00:38]} 21. Ra2 {[%emt 0:00:48]} b6 {[%emt 0:01:21]} 22. Ne5 {[%emt 0:01:03]} h5 {[%emt 0:02:55]} 23. Rb2 {[%emt 0:01:17]} f6 {[%emt 0:00:55]} 24. Ng6 {[%emt 0:00:53]} Kf7 {[%emt 0:01:07]} 25. Nf4 {[%emt 0:00:45]} R8c6 {[%emt 0:01:17]} 26. Nxh5 {[%emt 0:00:32]} Nb7 {[%emt 0:00:40]} 27. Nf4 {[%emt 0:00:40]} g5 {[%emt 0:00:43]} 28. Nd3 {[%emt 0:00:27]} Nd6 {[%emt 0:00:39]} 29. Nb4 {[%emt 0:01:03]} Rc8 {[%emt 0:01:02]} 30. a4 {[%emt 0:00:42]} Ne4 {[%emt 0:02:19]} 31. Nd3 {[%emt 0:00:49]} b5 {[%emt 0:01:14]} 32. axb5 {[%emt 0:00:28]} Rb8 {[%emt 0:00:36]} 33. b4 {[%emt 0:00:48]} Rxb5 {[%emt 0:00:42]} 34. Ra2 {[%emt 0:00:54]} Rc7 {[%emt 0:00:36]} 35. Nc5 {[%emt 0:00:27]} Nc3 {[%emt 0:00:57]} 36. Nxe6 {[%emt 0:01:45]} Nxe2+ {[%emt 0:00:25]} 37. Kf1 {[%emt 0:00:25]} Ng3+ {[%emt 0:00:31]} 38. fxg3 {[%emt 0:00:25]} Kxe6 {[%emt 0:00:23]} 39. c3 {[%emt 0:00:22]} Rxc3 {[%emt 0:00:30]} 40. Ra6+ {[%emt 0:00:52]} Rb6 {[%emt 0:00:27]} 41. Rxa7 {[%emt 0:00:26]} Rxg3 {[%emt 0:00:28]} 42. Ra2 {[%emt 0:00:48]} Rxb4 {[%emt 0:00:37]} 43. Ra6+ {[%emt 0:00:31]} Kf5 {[%emt 0:00:28]} 44. Kf2 {[%emt 0:00:30]} Rc3 {[%emt 0:00:46]} 45. Ra2 {[%emt 0:01:10]} Rxd4 {[%emt 0:00:31]} 46. Ke1 {[%emt 0:00:35]} Rc1+ {[%emt 0:00:32]} 47. Ke2 {[%emt 0:00:40]} Rdc4 {[%emt 0:00:22]} 48. Kd2 {[%emt 0:00:35]} Rg1 {[%emt 0:00:28]} 49. Kd3 {[%emt 0:00:35]} Rcc1 {[%emt 0:00:35]} 50. Ke3 {[%emt 0:01:50]} Rge1+ {[%emt 0:01:01]} 51. Kf3 {[%emt 0:03:13]} Ke5 {[%emt 0:00:24]} 52. Kg3 {[%emt 0:02:58]} f5 {[%emt 0:00:43]} 53. Ra8 {[%emt 0:01:02]} d4 {[%emt 0:00:39]} 54. Re8+ {[%emt 0:00:35]} Kd5 {[%emt 0:00:24]} 55. Rd8+ {[%emt 0:00:30]} Kc4 {[%emt 0:00:22]} 56. Rc8+ {[%emt 0:00:23]} Kd3 {[%emt 0:00:33]} 57. Rf8 {[%emt 0:00:38]} Re3+ {[%emt 0:00:27]} 58. Kh2 {[%emt 0:00:38]} f4 {[%emt 0:00:22]} 59. h4 {[%emt 0:00:42]} Ree1 {[%emt 0:00:40]} 60. Kh3 {[%emt 0:00:43]} gxh4 {[%emt 0:00:32]} 61. Kxh4 {[%emt 0:00:53]} Re4 {[%emt 0:00:33]} 62. Rf7 {[%emt 0:00:44]} f3+ {[%emt 0:00:35]} 63. Kh3 {[%emt 0:00:27]} fxg2 {[%emt 0:00:22]} 64. Kxg2 {[%emt 0:00:26]} Re3 {[%emt 0:00:29]} 65. Rf2 {[%emt 0:01:01]} Rc2 {[%emt 0:00:25]} 66. Rxc2 {[%emt 0:00:24]} Kxc2 {[%emt 0:00:22]} 67. Kf1 {[%emt 0:00:22]} d3 {[%emt 0:00:23]} 68. Kf2 {[%emt 0:00:24]} Re8 {[%emt 0:00:22]} 69. Kf3 {[%emt 0:00:24]} d2 {[%emt 0:00:23]} 70. Kg3 {[%emt 0:00:21]} d1=Q {[%emt 0:00:23]} 71. Kh4 {[%emt 0:00:22]} Rg8 {[%emt 0:00:25]} 72. Kh3 {[%emt 0:00:35]} Qh1# {[%emt 0:00:22]} 0-1

[Event "Balkan Youth Online-ch 2020"]
[Site "Online"]
[Date "2020.10.31"]
[Round "2.55"]
[White "Levstik Taja"]
[Black "Siskou, Evangelia"]
[Result "0-1"]
[ECO "C56"]
[WhiteElo "1342"]
[BlackElo "1339"]
[Annotator "NA RC"]
[PlyCount "58"]
[EventDate "2020.10.31"]
[EventType "swiss"]
[SourceTitle "playchess.com"]
[Source "ChessBase"]
[SourceQuality "1"]
[TimeControl "5400+30"]

1. e4 {[%emt 1:05:20]} e5 {[%emt 1:05:24]} 2. Nf3 {[%emt 0:00:23]} Nc6 {[%emt 0:00:25]} 3. Bc4 {[%emt 0:00:24]} Nf6 {[%emt 0:00:25]} 4. d4 {[%emt 0:00:23]} exd4 {[%emt 0:02:26]} 5. O-O {[%emt 0:00:24]} Bc5 {[%emt 0:00:32]} 6. Re1 {[%emt 0:00:47]} O-O {[%emt 0:00:55]} 7. c3 {[%emt 0:00:29]} dxc3 {[%emt 0:00:28]} 8. Nxc3 {[%emt 0:00:25]} d6 {[%emt 0:01:36]} 9. Bf4 {[%emt 0:00:39]} Re8 {[%emt 0:01:55]} 10. Qc2 {[%emt 0:00:33]} Ng4 {[%emt 0:02:02]} 11. Rf1 {[%emt 0:01:36]} a6 {[%emt 0:03:04]} 12. Ng5 {[%emt 0:01:05]} Be6 {[%emt 0:01:45]} 13. Bxe6 {[%emt 0:00:54]} fxe6 {[%emt 0:00:28]} 14. e5 {[%emt 0:00:35]} g6 {[%emt 0:01:00]} 15. Qd3 {[%emt 0:00:50]} dxe5 {[%emt 0:01:01]} 16. Qh3 {[%emt 0:01:01]} Nf6 {[%emt 0:01:38]} 17. Nce4 {[%emt 0:00:38]} Nh5 {[%emt 0:01:54]} 18. g4 {[%emt 0:01:03]} exf4 {[%emt 0:00:30]} 19. gxh5 {[%emt 0:00:31]} Ne5 {[%emt 0:06:49]} 20. hxg6 {[%emt 0:01:22]} Qe7 {[%emt 0:00:58]} 21. Nf6+ {[%emt 0:01:30]} Qxf6 {[%emt 0:01:21]} 22. Qxh7+ {[%emt 0:00:26]} Kf8 {[%emt 0:00:23]} 23. Nxe6+ {[%emt 0:00:40]} Rxe6 {[%emt 0:00:48]} 24. g7+ {[%emt 0:00:41]} Qxg7+ {[%emt 0:00:27]} 25. Kh1 {[%emt 0:00:27]} Qxh7 {[%emt 0:00:36]} 26. Rg1 {[%emt 0:00:29]} Qe4+ {[%emt 0:00:23]} 27. Rg2 {[%emt 0:00:25]} Rg6 {[%emt 0:00:31]} 28. Rag1 {[%emt 0:00:30]} Nd3 {[%emt 0:00:33]} 29. b3 {[%emt 0:00:28]} Nxf2# {[%emt 0:00:22]} 0-1

[Event "Balkan Youth Online-ch 2020"]
[Site "Online"]
[Date "2020.10.31"]
[Round "2.58"]
[White "Yurt, Nehir"]
[Black "Kontogianni, Vasiliki"]
[Result "1-0"]
[ECO "B50"]
[WhiteElo "1230"]
[BlackElo "1144"]
[Annotator "NA RC"]
[PlyCount "93"]
[EventDate "2020.10.31"]
[EventType "swiss"]
[SourceTitle "playchess.com"]
[Source "ChessBase"]
[SourceQuality "1"]
[TimeControl "5400+30"]

1. e4 {[%emt 1:05:20]} c5 {[%emt 1:05:25]} 2. Nf3 {[%emt 0:00:24]} d6 {[%emt 0:00:31]} 3. c3 {[%emt 0:00:31]} Nf6 {[%emt 0:00:25]} 4. Be2 {[%emt 0:00:34]} Nc6 {[%emt 0:00:29]} 5. d4 {[%emt 0:00:29]} cxd4 {[%emt 0:00:24]} 6. cxd4 {[%emt 0:00:23]} e6 {[%emt 0:00:24]} 7. Nc3 {[%emt 0:01:16]} Be7 {[%emt 0:00:33]} 8. Be3 {[%emt 0:01:01]} O-O {[%emt 0:00:55]} 9. Qd2 {[%emt 0:00:49]} b6 {[%emt 0:00:52]} 10. a3 {[%emt 0:00:48]} Na5 {[%emt 0:00:30]} 11. Qc2 {[%emt 0:00:50]} Bb7 {[%emt 0:00:29]} 12. b4 {[%emt 0:00:42]} Nc6 {[%emt 0:00:24]} 13. Qd2 {[%emt 0:00:52]} Rc8 {[%emt 0:00:25]} 14. O-O {[%emt 0:00:37]} Qd7 {[%emt 0:00:35]} 15. Rac1 {[%emt 0:01:08]} a6 {[%emt 0:00:29]} 16. Rfd1 {[%emt 0:00:46]} b5 {[%emt 0:00:24]} 17. Bd3 {[%emt 0:01:24]} h5 {[%emt 0:01:07]} 18. h3 {[%emt 0:01:02]} Rfd8 {[%emt 0:01:19]} 19. e5 {[%emt 0:02:58]} dxe5 {[%emt 0:00:34]} 20. dxe5 {[%emt 0:00:54]} Nd5 {[%emt 0:00:49]} 21. Nxd5 {[%emt 0:01:08]} Qxd5 {[%emt 0:00:29]} 22. Bh7+ {[%emt 0:02:59]} Kxh7 {[%emt 0:00:34]} 23. Qc2+ {[%emt 0:00:33]} Kg8 {[%emt 0:00:33]} 24. Rxd5 {[%emt 0:00:26]} Rxd5 {[%emt 0:00:23]} 25. Qe2 {[%emt 0:01:16]} Rcd8 {[%emt 0:01:01]} 26. Kh2 {[%emt 0:03:15]} Rd3 {[%emt 0:01:30]} 27. Qb2 {[%emt 0:01:30]} R3d5 {[%emt 0:00:49]} 28. Bc5 {[%emt 0:01:14]} Bxc5 {[%emt 0:00:39]} 29. Rxc5 {[%emt 0:00:28]} Rd3 {[%emt 0:00:49]} 30. Qc2 {[%emt 0:02:15]} Rxa3 {[%emt 0:01:21]} 31. Rxc6 {[%emt 0:00:41]} Bxc6 {[%emt 0:00:56]} 32. Qxc6 {[%emt 0:00:30]} Ra1 {[%emt 0:01:00]} 33. Qe4 {[%emt 0:01:16]} Ra4 {[%emt 0:00:51]} 34. Ng5 {[%emt 0:00:36]} g6 {[%emt 0:00:25]} 35. Qf4 {[%emt 0:00:58]} Rf8 {[%emt 0:00:27]} 36. Ne4 {[%emt 0:01:03]} Kg7 {[%emt 0:00:29]} 37. Qf6+ {[%emt 0:00:32]} Kh6 {[%emt 0:00:27]} 38. Qg5+ {[%emt 0:00:29]} Kg7 {[%emt 0:00:24]} 39. g4 {[%emt 0:00:30]} hxg4 {[%emt 0:00:24]} 40. Qxg4 {[%emt 0:00:33]} Rxb4 {[%emt 0:00:36]} 41. Qh4 {[%emt 0:00:34]} Rh8 {[%emt 0:00:40]} 42. Qf6+ {[%emt 0:00:38]} Kg8 {[%emt 0:00:33]} 43. Ng5 {[%emt 0:00:47]} Rh7 {[%emt 0:00:24]} 44. Nxh7 {[%emt 0:00:23]} Kxh7 {[%emt 0:00:24]} 45. Qxf7+ {[%emt 0:00:22]} Kh6 {[%emt 0:00:21]} 46. Qf8+ {[%emt 0:00:24]} Kg5 {[%emt 0:00:24]} 47. Qxb4 {[%emt 0:00:23]} 1-0

[Event "Balkan Youth Online-ch 2020"]
[Site "Online"]
[Date "2020.10.31"]
[Round "2.59"]
[White "Caku, Kler"]
[Black "Timagina, Sofia"]
[Result "1-0"]
[ECO "C45"]
[WhiteElo "1199"]
[BlackElo "1127"]
[Annotator "NA RC"]
[PlyCount "117"]
[EventDate "2020.10.31"]
[EventType "swiss"]
[SourceTitle "playchess.com"]
[Source "ChessBase"]
[SourceQuality "1"]
[TimeControl "5400+30"]

1. e4 {[%emt 1:05:20]} e5 {[%emt 1:05:24]} 2. Nf3 {[%emt 0:00:24]} Nc6 {[%emt 0:00:24]} 3. d4 {[%emt 0:00:22]} exd4 {[%emt 0:00:23]} 4. Nxd4 {[%emt 0:00:22]} Bb4+ {[%emt 0:00:25]} 5. c3 {[%emt 0:00:23]} Bc5 {[%emt 0:00:25]} 6. Be3 {[%emt 0:00:24]} Bb6 {[%emt 0:00:23]} 7. Be2 {[%emt 0:00:22]} Nf6 {[%emt 0:00:44]} 8. Nd2 {[%emt 0:00:29]} O-O {[%emt 0:00:33]} 9. O-O {[%emt 0:00:23]} Re8 {[%emt 0:00:26]} 10. Qc2 {[%emt 0:00:25]} Qe7 {[%emt 0:03:39]} 11. Nxc6 {[%emt 0:01:21]} dxc6 {[%emt 0:00:35]} 12. Bxb6 {[%emt 0:00:36]} axb6 {[%emt 0:00:27]} 13. Bd3 {[%emt 0:00:33]} Bg4 {[%emt 0:00:53]} 14. Rfe1 {[%emt 0:01:27]} Rad8 {[%emt 0:02:37]} 15. e5 {[%emt 0:01:58]} Nd7 {[%emt 0:09:38]} 16. Bxh7+ {[%emt 0:01:44]} Kh8 {[%emt 0:00:35]} 17. Bd3 {[%emt 0:00:50]} Nxe5 {[%emt 0:00:57]} 18. h3 {[%emt 0:03:04]} Rxd3 {[%emt 0:03:12]} 19. hxg4 {[%emt 0:01:46]} Qg5 {[%emt 0:02:08]} 20. Rxe5 {[%emt 0:02:21]} Rxe5 {[%emt 0:05:20]} 21. Qxd3 {[%emt 0:00:25]} Rd5 {[%emt 0:00:32]} 22. Nf3 {[%emt 0:01:26]} Qxg4 {[%emt 0:00:46]} 23. Qe3 {[%emt 0:01:02]} Kh7 {[%emt 0:00:34]} 24. Re1 {[%emt 0:00:38]} f6 {[%emt 0:00:42]} 25. Qe4+ {[%emt 0:00:25]} Qxe4 {[%emt 0:00:33]} 26. Rxe4 {[%emt 0:00:22]} b5 {[%emt 0:00:23]} 27. Re7 {[%emt 0:00:24]} Rd1+ {[%emt 0:00:23]} 28. Kh2 {[%emt 0:00:23]} b6 {[%emt 0:00:25]} 29. Rxc7 {[%emt 0:00:23]} Rb1 {[%emt 0:00:22]} 30. Rxc6 {[%emt 0:00:22]} Rxb2 {[%emt 0:00:22]} 31. Rxb6 {[%emt 0:00:22]} Rxa2 {[%emt 0:00:23]} 32. Rxb5 {[%emt 0:00:21]} Rc2 {[%emt 0:00:23]} 33. Rc5 {[%emt 0:00:23]} Rxf2 {[%emt 0:00:24]} 34. Kg3 {[%emt 0:00:25]} Rc2 {[%emt 0:00:21]} 35. c4 {[%emt 0:00:23]} Kg8 {[%emt 0:00:24]} 36. Rc7 {[%emt 0:00:24]} Rc3 {[%emt 0:00:25]} 37. Kf4 {[%emt 0:00:27]} Kf8 {[%emt 0:00:25]} 38. Kf5 {[%emt 0:00:32]} Ke8 {[%emt 0:00:25]} 39. Kg6 {[%emt 0:00:50]} Kd8 {[%emt 0:00:25]} 40. Rc5 {[%emt 0:00:26]} Kd7 {[%emt 0:00:24]} 41. Kxg7 {[%emt 0:01:01]} Kd6 {[%emt 0:00:25]} 42. Rd5+ {[%emt 0:00:28]} Ke6 {[%emt 0:00:24]} 43. Nd4+ {[%emt 0:00:58]} Ke7 {[%emt 0:01:06]} 44. Nf5+ {[%emt 0:00:45]} Ke6 {[%emt 0:00:33]} 45. Rc5 {[%emt 0:00:49]} Rc2 {[%emt 0:00:45]} 46. Nd4+ {[%emt 0:00:30]} Kd6 {[%emt 0:00:58]} 47. Rd5+ {[%emt 0:00:24]} Ke7 {[%emt 0:00:30]} 48. Nxc2 {[%emt 0:00:26]} Ke6 {[%emt 0:00:23]} 49. Rd1 {[%emt 0:00:25]} f5 {[%emt 0:00:25]} 50. c5 {[%emt 0:00:23]} f4 {[%emt 0:00:25]} 51. c6 {[%emt 0:00:23]} Ke7 {[%emt 0:00:23]} 52. c7 {[%emt 0:00:26]} f3 {[%emt 0:00:27]} 53. gxf3 {[%emt 0:00:25]} Ke6 {[%emt 0:00:34]} 54. c8=Q+ {[%emt 0:00:23]} Ke5 {[%emt 0:00:23]} 55. Qe8+ {[%emt 0:00:23]} Kf4 {[%emt 0:00:27]} 56. Rd4+ {[%emt 0:00:28]} Kxf3 {[%emt 0:00:25]} 57. Qe3+ {[%emt 0:00:23]} Kg2 {[%emt 0:00:23]} 58. Rd2+ {[%emt 0:00:22]} Kf1 {[%emt 0:00:23]} 59. Qe1# {[%emt 0:00:22]} 1-0

[Event "Balkan Youth Online-ch 2020"]
[Site "Online"]
[Date "2020.10.31"]
[Round "2.60"]
[White "Aldea, Maria-Antonia"]
[Black "Beber, Anja"]
[Result "0-1"]
[ECO "A46"]
[WhiteElo "1181"]
[BlackElo "1285"]
[Annotator "NA RC"]
[PlyCount "108"]
[EventDate "2020.10.31"]
[EventType "swiss"]
[SourceTitle "playchess.com"]
[Source "ChessBase"]
[SourceQuality "1"]
[TimeControl "5400+30"]

1. d4 {[%emt 1:05:20]} Nf6 {[%emt 1:05:25]} 2. Nf3 {[%emt 0:00:23]} e6 {[%emt 0:00:24]} 3. g3 {[%emt 0:00:23]} c5 {[%emt 0:00:26]} 4. c4 {[%emt 0:01:18]} Be7 {[%emt 0:02:05]} 5. Bg2 {[%emt 0:00:26]} O-O {[%emt 0:00:36]} 6. O-O {[%emt 0:00:23]} Qa5 {[%emt 0:01:24]} 7. b3 {[%emt 0:01:45]} d6 {[%emt 0:04:35]} 8. Bb2 {[%emt 0:00:35]} Nbd7 {[%emt 0:00:46]} 9. Nc3 {[%emt 0:01:26]} a6 {[%emt 0:00:59]} 10. Qc2 {[%emt 0:04:35]} Qb6 {[%emt 0:00:54]} 11. Rad1 {[%emt 0:01:16]} cxd4 {[%emt 0:01:51]} 12. Nxd4 {[%emt 0:00:46]} Nc5 {[%emt 0:00:51]} 13. Ba3 {[%emt 0:03:52]} Qc7 {[%emt 0:01:40]} 14. Rfe1 {[%emt 0:01:21]} Rb8 {[%emt 0:01:39]} 15. Bb2 {[%emt 0:01:35]} b6 {[%emt 0:00:40]} 16. Nf3 {[%emt 0:01:19]} Bb7 {[%emt 0:00:50]} 17. Nd2 {[%emt 0:01:44]} Bxg2 {[%emt 0:00:36]} 18. Kxg2 {[%emt 0:00:23]} Qc6+ {[%emt 0:00:23]} 19. Nf3 {[%emt 0:00:32]} Rfd8 {[%emt 0:01:07]} 20. e4 {[%emt 0:01:32]} Rbc8 {[%emt 0:02:45]} 21. Qb1 {[%emt 0:02:18]} Qb7 {[%emt 0:01:51]} 22. h3 {[%emt 0:02:24]} b5 {[%emt 0:00:51]} 23. cxb5 {[%emt 0:00:46]} axb5 {[%emt 0:00:24]} 24. e5 {[%emt 0:01:04]} dxe5 {[%emt 0:00:31]} 25. Rxe5 {[%emt 0:00:24]} b4 {[%emt 0:01:34]} 26. Rxd8+ {[%emt 0:01:40]} Rxd8 {[%emt 0:00:27]} 27. Nd1 {[%emt 0:00:50]} Nce4 {[%emt 0:00:39]} 28. Qc2 {[%emt 0:02:05]} Bd6 {[%emt 0:00:56]} 29. Ra5 {[%emt 0:00:26]} Bc7 {[%emt 0:00:25]} 30. Ra4 {[%emt 0:00:28]} h6 {[%emt 0:01:08]} 31. a3 {[%emt 0:00:40]} Ng5 {[%emt 0:00:37]} 32. Qe2 {[%emt 0:00:30]} Qxf3+ {[%emt 0:00:40]} 33. Qxf3 {[%emt 0:00:30]} Nxf3 {[%emt 0:00:22]} 34. Kxf3 {[%emt 0:00:22]} Rxd1 {[%emt 0:00:23]} 35. Rxb4 {[%emt 0:00:35]} Bd6 {[%emt 0:00:39]} 36. Ra4 {[%emt 0:00:30]} Rd3+ {[%emt 0:00:26]} 37. Kg2 {[%emt 0:00:24]} Rxb3 {[%emt 0:00:22]} 38. Bxf6 {[%emt 0:00:28]} gxf6 {[%emt 0:00:25]} 39. Ra8+ {[%emt 0:00:23]} Kg7 {[%emt 0:00:22]} 40. a4 {[%emt 0:00:22]} Ra3 {[%emt 0:00:30]} 41. a5 {[%emt 0:00:24]} Bb4 {[%emt 0:00:27]} 42. a6 {[%emt 0:00:21]} Bc5 {[%emt 0:00:27]} 43. Rc8 {[%emt 0:00:39]} Ba7 {[%emt 0:00:34]} 44. Rc6 {[%emt 0:00:24]} Ra2 {[%emt 0:00:25]} 45. h4 {[%emt 0:00:49]} Rxf2+ {[%emt 0:00:26]} 46. Kh3 {[%emt 0:00:22]} Ra2 {[%emt 0:00:27]} 47. Rd6 {[%emt 0:00:26]} Ra3 {[%emt 0:00:28]} 48. Rc6 {[%emt 0:00:22]} f5 {[%emt 0:00:23]} 49. Rd6 {[%emt 0:00:36]} Bb8 {[%emt 0:00:24]} 50. Rb6 {[%emt 0:00:23]} Bxg3 {[%emt 0:00:30]} 51. Kg2 {[%emt 0:00:24]} Bxh4 {[%emt 0:00:35]} 52. Rc6 {[%emt 0:00:36]} f4 {[%emt 0:00:23]} 53. Rd6 {[%emt 0:00:50]} f3+ {[%emt 0:00:29]} 54. Kf1 {[%emt 0:00:25]} f2 {[%emt 0:00:27]} 0-1